Cogmind - Beta 11 @@@ ROGUE MODE // 2022.04.11 @ 09:56:42 Player: bschuck Result: Destroyed by G-47 Trooper with Particle Gun Performance ------------- Evolutions (2) 1000 Regions Visited (5) 1000 Robots Destroyed (39) 195 Value Destroyed (696) 696 Prototype IDs (2) 40 Alien Tech Used (0) 0 Bonus (198) 198 TOTAL SCORE: 3129 Bonus ------- Aligned with FarCom 300 Friendly Fire -102 Cogmind --------- Core Integrity 0/550 Matter 15/300 Energy 38/100 System Corruption 0% Temperature Cool (9) Movement Core (50) Location -8/Materials Parts ------- > --- POWER (1) -------- (None) > --- PROPULSION (2) --- (None) > --- UTILITY (4) ------ (None) > --- WEAPON (4) ------- Spear > --- INVENTORY (5) ---- Flight Unit Improved Flight Unit Peak State ------------ > --- POWER ------------ Light Deuterium Engine > --- PROPULSION ------- Light Treads Light Treads > --- UTILITY ---------- Humpback Particle Charger Corruption Screen > --- WEAPON ----------- Ion Cannon Minigun Flak Cannon Missile Launcher > --- INVENTORY -------- Light Nuclear Core Light Treads Aluminum Leg Aluminum Leg Aluminum Leg Flight Unit Flight Unit Improved Flight Unit Improved VTOL Module Improved VTOL Module Improved Heat Sink Improved Heat Sink Small Storage Unit Small Storage Unit Medium Storage Unit Advanced Targeting Computer Particle Charger Propulsion Shielding Reflective Plating Lightning Gun Lightning Gun Lightning Gun Lightning Gun Ion Cannon Ion Cannon Ion Cannon Minigun Minigun High-powered Shotgun Plasma Cutter Spear Spear Spear Spear [Rating: 35] Favorites ----------- Power Light Deuterium Engine Engine Light Deuterium Engine Power Core Light Nuclear Core Propulsion Light Treads Treads Light Treads Leg Aluminum Leg Wheel Compact Wheel Flight Unit Flight Unit Utility Humpback Device Particle Charger Storage Humpback Processor Corruption Screen Protection Improved Weapon Shielding Weapon Flak Cannon Energy Gun Lightning Gun Energy Cannon Ion Cannon Ballistic Gun Minigun Ballistic Cannon Flak Cannon Launcher Missile Launcher Piercing Weapon Spear Build | -11 -10 -10 -10 -9 -8 ------- Run | Scr Mat Min Exi Min Mat Slots Evolved 4 | . . . . . 4 Power . | . . . . . . Propulsion . | . . . . . . Utility 2 | . . . . . 2 Weapon 2 | . . . . . 2 Parts Attached 34 | 5 8 5 1 1 14 Power 4 | . 2 . . 1 1 Engine 3 | . 2 . . 1 . Core 1 | . . . . . 1 Reactor . | . . . . . . Propulsion 10 | 2 4 2 . . 2 Treads 2 | . . 2 . . . Leg 4 | 2 . . . . 2 Wheel 2 | . 2 . . . . Hover . | . . . . . . Flight 2 | . 2 . . . . Utility 7 | 1 1 . 1 . 4 Device 2 | . . . . . 2 Storage 3 | 1 1 . 1 . . Processor 1 | . . . . . 1 Hackware . | . . . . . . Protection 1 | . . . . . 1 Artifact . | . . . . . . Weapon 13 | 2 1 3 . . 7 Energy Gun 2 | . . . . . 2 Energy Cannon 1 | . . . . . 1 Ballistic Gun 6 | 2 . 2 . . 2 Ballistic Cannon 1 | . . 1 . . . Launcher 2 | . 1 . . . 1 Special Weapon . | . . . . . . Impact Weapon . | . . . . . . Slashing Weapon . | . . . . . . Piercing Weapon 1 | . . . . . 1 Special Melee Weapon . | . . . . . . Unidentified Prototypes . | . . . . . . Parts Lost 28 | . 2 . . . 26 Power 2 | . . . . . 2 Propulsion 7 | . 1 . . . 6 Utility 7 | . . . . . 7 Weapon 12 | . 1 . . . 11 Highest Loss Streak 25 | . 1 . . . 25 To Critical Strikes . | . . . . . . Average Slot Usage (%) 87 | . 92 97 93 85 86 Engine 11 | . 14 14 14 14 8 Treads 21 | . . 23 28 28 17 Leg 1 | . 16 . . . . Device 3 | . . . . . 7 Storage 14 | . 23 28 22 14 8 Processor 1 | . . . . . 4 Protection 2 | . . . . . 4 Energy Cannon 3 | . . . . . 6 Ballistic Gun 12 | . 20 14 14 14 10 Ballistic Cannon 10 | . . 5 14 14 8 Launcher 4 | . 7 8 . . 8 Naked Turns 3 | . . . . . 3 Heaviest Build 231 | 7 13 18 212 214 231 Greatest Support 40 | 20 32 40 40 40 40 Greatest Overweight (x) 73 | 1 4 . 5 5 73 Average Overweight (x) 2 | . . . . 5 5 Largest Inventory Capacity 35 | 8 8 8 35 35 35 Average Capacity 29 | 7 8 8 19 35 34 Most Carried 35 | 8 8 8 10 12 35 Average Carried 15 | 4 7 6 8 11 23 Final Capacity 35 | 8 8 8 35 35 5 Final Carried 12 | 7 8 8 10 12 2 Class Distribution -------------------- 44% | Hauler-Skirmisher 35% | Hauler-Mutant 20% | Mutant Dominant Class ---------------- Mutant | -10/Materials Mutant | -10/Mines Mutant | -10/Exiles Hauler-Mutant | -9/Mines Hauler-Skirmisher | -8/Materials Resources | -11 -10 -10 -10 -9 -8 ----------- Run | Scr Mat Min Exi Min Mat Matter Collected 914 | 223 138 86 . 121 346 Remotely . | . . . . . . Salvage Created 866 | . 177 7 . 121 561 Parts 59 | . 12 . . 15 32 Haulers Intercepted 2 | . 1 . . . 1 Recyclers Shooed 1 | . 1 . . . . Parts Field Recycled . | . . . . . . Retrieved Matter . | . . . . . . Parts Self-Destructed . | . . . . . . Prevented . | . . . . . . Kills | -11 -10 -10 -10 -9 -8 ------- Run | Scr Mat Min Exi Min Mat Combat Hostiles Destroyed 23 | . 3 . . 6 14 Guns 8 | . 2 . . 5 1 Cannons 6 | . . . . 1 5 AOE 8 | . 1 . . . 7 Classes Destroyed 7 | . 4 . . . 3 Worker 2 | . 1 . . . 1 Builder 6 | . . . . . 6 Hauler 2 | . 1 . . . 1 Recycler 4 | . 1 . . 1 2 Watcher 2 | . . . . . 2 Swarmer 15 | . 3 . . 6 6 Grunt 8 | . . . . . 8 Best Kill Streak 8 | . 3 . . 4 8 Combat Bots Only 4 | . 3 . . 3 4 Max Kills in Single Turn 5 | . 1 . . 2 5 Gunslinging . | . . . . . . Exploded 2 | . 1 . . . 2 Melee . | . . . . . . Uniques/NPCs Destroyed . | . . . . . . Combat | -11 -10 -10 -10 -9 -8 -------- Run | Scr Mat Min Exi Min Mat Damage Taken 2489 | . 247 88 . 166 1988 Core 589 | . . 15 . 10 564 Absorbed by Shields . | . . . . . . Redirected to Shielding 100 | . . . . . 100 Core Remaining (%) 95 | 100 . . . 90 . Volleys Fired 78 | . 24 4 . 14 36 Largest 4 | . 2 2 . 2 4 Hottest 165 | . 50 69 . 69 165 Shots Fired 175 | . 41 8 . 28 98 Gun 86 | . 37 4 . 14 31 Cannon 64 | . . 1 . 14 49 Launcher 25 | . 4 3 . . 18 Special . | . . . . . . Kinetic 124 | . 37 5 . 28 54 Thermal 22 | . . . . . 22 Explosive 25 | . 4 3 . . 18 Electromagnetic 4 | . . . . . 4 Robot Hit Streak 9 | . 6 2 . 5 9 Robot Miss Streak 10 | . 2 1 . 7 10 Penetration Max . | . . . . . . Secondary Targets . | . . . . . . Shots Hit Robots 97 | . 24 2 . 15 56 Core Hits 84 | . 11 8 . 15 50 Critical Kills 1 | . . . . . 1 Critical Parts Destroyed . | . . . . . . Critical Strikes 1 | . . . . . 1 Meltdown 1 | . . . . . 1 Melee Attacks . | . . . . . . Impact . | . . . . . . Slashing . | . . . . . . Piercing . | . . . . . . Sneak Attacks . | . . . . . . Combat Hostiles . | . . . . . . Follow-up Attacks . | . . . . . . Damage Inflicted 3472 | . 316 294 . 270 2592 Guns 666 | . 173 8 . 144 341 Cannons 796 | . . 28 . 126 642 Explosions 1991 | . 143 258 . . 1590 Melee . | . . . . . . Ramming 19 | . . . . . 19 Kinetic 1082 | . 173 36 . 270 603 Thermal 311 | . . . . . 311 Explosive 1991 | . 143 258 . . 1590 Electromagnetic 69 | . . . . . 69 Impact . | . . . . . . Slashing . | . . . . . . Piercing . | . . . . . . Highest Corruption . | . . . . . . Average Corruption . | . . . . . . Corruption Purged . | . . . . . . Corruption Blocked . | . . . . . . Overload Shots . | . . . . . . Overflow Damage 193 | . 22 . . . 171 Projectiles 32 | . . . . . 32 Explosions 161 | . 22 . . . 139 Melee . | . . . . . . Knockbacks 10 | . . . . 4 6 Impact . | . . . . . . Kinetic 8 | . . . . 4 4 Secondary 2 | . . . . . 2 Self-Inflicted Damage 246 | . 152 69 . . 25 Shots 6 | . 3 2 . . 1 Rammed 3 | . . . . . 3 Targets Rammed 3 | . . . . . 3 Kicked . | . . . . . . Crushed . | . . . . . . Highest Temperature 292 | . 10 28 . 88 292 Average Temperature 80 | . 7 11 . 35 101 Received Heat Transfer 351 | . . 9 . . 342 Effects 1 | . . . . . 1 Energy Bleed 1 | . . . . . 1 Siege Activations . | . . . . . . Robots Corrupted . | . . . . . . Combat Hostiles . | . . . . . . Parts Fried . | . . . . . . Impact Corruptions . | . . . . . . Robots Melted 1 | . . . . . 1 Combat Hostiles 1 | . . . . . 1 Parts Melted 1 | . . . . . 1 Heat Transferred 444 | . . . . . 444 Parts Sabotaged . | . . . . . . Parts Stolen . | . . . . . . Parts Stripped . | . . . . . . Power Chain Reactions . | . . . . . . Missiles Intercepted . | . . . . . . Alert | -11 -10 -10 -10 -9 -8 ------- Run | Scr Mat Min Exi Min Mat Peak Influence 282 | . 282 190 . 75 260 Initial 109 | . . 109 . . . Average 78 | . 96 172 . 11 107 Maximum Alert Level 1 | . 1 . . . 1 Low Security (%) 90 | 100 87 100 . 100 83 Level 1 9 | . 12 . . . 16 Level 2 . | . . . . . . Level 3 . | . . . . . . Level 4 . | . . . . . . Level 5 . | . . . . . . High Security . | . . . . . . Max Security . | . . . . . . Squads Dispatched 5 | . . 1 . . 4 Investigation 1 | . . 1 . . . Extermination . | . . . . . . Reinforcement 4 | . . . . . 4 Assault . | . . . . . . Garrison . | . . . . . . Intercept . | . . . . . . Searches Triggered . | . . . . . . Construction Impeded 2 | . . . . . 2 Haulers Reinforced . | . . . . . . Active Scanning Responses . | . . . . . . Cargo Convoy Interrupts . | . . . . . . Stealth | -11 -10 -10 -10 -9 -8 --------- Run | Scr Mat Min Exi Min Mat Distress Signals 5 | . . . . . 5 Communications Jammed . | . . . . . . Distress Signals . | . . . . . . Times Spotted 37 | . 3 1 . 6 27 Peak Tracking Total 5 | . 3 1 . 3 5 Tactical Retreats . | . . . . . . Traps | -11 -10 -10 -10 -9 -8 ------- Run | Scr Mat Min Exi Min Mat Traps Triggered . | . . . . . . Indirectly . | . . . . . . Trap Hack Attempts . | . . . . . . Triggered . | . . . . . . Disarmed . | . . . . . . Reprogrammed . | . . . . . . Reused . | . . . . . . Traps Extracted . | . . . . . . Installed . | . . . . . . Triggered . | . . . . . . Machines | -11 -10 -10 -10 -9 -8 ---------- Run | Scr Mat Min Exi Min Mat Machines Disabled 6 | . 2 . . . 4 Max in Single Turn 1 | . 1 . . . 1 Machines Sabotaged . | . . . . . . Garrisons Compromised . | . . . . . . Overloaded Fab Kills . | . . . . . . Hacking | -11 -10 -10 -10 -9 -8 --------- Run | Scr Mat Min Exi Min Mat Machines Accessed 9 | . 2 2 4 . 1 Terminals 4 | . 2 1 . . 1 Fabricators . | . . . . . . Repair Stations . | . . . . . . Recycling Units . | . . . . . . Scanalyzers . | . . . . . . Garrison Access . | . . . . . . Total Hacks 18 | . 6 2 7 . 3 Successful 16 | . 4 2 7 . 3 Failed 2 | . 2 . . . . Catastrophic . | . . . . . . Database Lockouts . | . . . . . . Manual . | . . . . . . Terminals 10 | . 6 1 . . 3 Fabricators . | . . . . . . Repair Stations . | . . . . . . Recycling Units . | . . . . . . Scanalyzers . | . . . . . . Garrison Access . | . . . . . . Terminal Hacks 16 | . 4 2 7 . 3 Record 9 | . . . 7 . 2 Prototype ID Bank 1 | . 1 . . . . Open Door 1 | . . 1 . . . Emergency Access Points 1 | . 1 . . . . Alert Level 1 | . 1 . . . . Locate Traps 1 | . 1 . . . . Patrol Status 1 | . . . . . 1 Assault Status 1 | . . 1 . . . Fabricator Hacks . | . . . . . . Repair Station Hacks . | . . . . . . Recycling Unit Hacks . | . . . . . . Scanalyzer . | . . . . . . Garrison Access Hacks . | . . . . . . Unauthorized Hacks . | . . . . . . Terminals . | . . . . . . Fabricators . | . . . . . . Repair Stations . | . . . . . . Recycling Units . | . . . . . . Scanalyzers . | . . . . . . Garrison Access . | . . . . . . Data Cores Recovered . | . . . . . . Used . | . . . . . . Hacking Detections 3 | . 1 1 . . 1 Full Trace Events . | . . . . . . Feedback Events . | . . . . . . Feedback Blocked . | . . . . . . Robot Schematics Acquired . | . . . . . . Robots Built . | . . . . . . Authchips . | . . . . . . Time . | . . . . . . Total Robot Build Rating . | . . . . . . Part Schematics Acquired . | . . . . . . Parts Built . | . . . . . . Authchips . | . . . . . . Time . | . . . . . . Total Part Build Rating . | . . . . . . Parts Repaired . | . . . . . . Time . | . . . . . . Parts Recycled . | . . . . . . Recycled Matter . | . . . . . . Retrieved Matter . | . . . . . . Retrieved Components . | . . . . . . Parts Scanalyzed . | . . . . . . Part Schematics Acquired . | . . . . . . Parts Damaged . | . . . . . . Bothacking | -11 -10 -10 -10 -9 -8 ------------ Run | Scr Mat Min Exi Min Mat Used RIF Installer . | . . . . . . Robots Hacked . | . . . . . . Non-combat . | . . . . . . Combat . | . . . . . . Robot Hacks Applied . | . . . . . . Relay Couplers Released . | . . . . . . Fabnet Peak Effective % . | . . . . . . Robots Rewired . | . . . . . . Allies Hacked . | . . . . . . Hacks Repelled . | . . . . . . Allies | -11 -10 -10 -10 -9 -8 -------- Run | Scr Mat Min Exi Min Mat Total Allies . | . . . . . . Largest Group . | . . . . . . Highest-Rated Group . | . . . . . . Highest-Rated Ally . | . . . . . . Total Orders . | . . . . . . Ally Attacks . | . . . . . . Total Damage . | . . . . . . Kills . | . . . . . . Allies Corrupted . | . . . . . . Allies Melted . | . . . . . . Intel | -11 -10 -10 -10 -9 -8 ------- Run | Scr Mat Min Exi Min Mat Robot Analysis Total . | . . . . . . Derelict Logs Recovered . | . . . . . . Drone Launches . | . . . . . . Drone Recoveries . | . . . . . . Exploration | -11 -10 -10 -10 -9 -8 ------------- Run | Scr Mat Min Exi Min Mat Turns Passed 5462 | 66 330 303 733 1551 2479 Spaces Moved 1447 | 46 209 189 316 270 417 Core 36 | 19 9 . . . 8 Treads 1134 | . . 145 316 270 403 Legs 161 | 27 128 . . . 6 Wheels 110 | . 66 44 . . . Hover . | . . . . . . Flight 6 | . 6 . . . . Fastest Speed 50 | 50 100 100 160 560 50 Average Speed 354 | 107 119 146 229 560 554 Slowest Speed 3700 | 120 280 160 560 560 3700 Overloaded Moves . | . . . . . . Propulsion Burnouts . | . . . . . . Robots Hopped . | . . . . . . Cave-ins Triggered 1 | . . . . . 1 Exploration Rate (%) 35 | 3 29 26 61 60 31 Regions Visited 5 Branch Regions 3 Pre-discovered Areas . | . . . . . . Known Exits Taken . | . . . . . . Unknown Exits Taken 5 | 1 1 1 1 1 . Scrap Searched . | . . . . . . Spaces Dug . | . . . . . . Terrain Destroyed 224 | . 66 28 . . 130 Melee . | . . . . . . Projectile 8 | . . . . . 8 AOE 216 | . 66 28 . . 122 Terrain Rammed . | . . . . . . Walls Destroyed . | . . . . . . Machines Disabled . | . . . . . . Actions | -11 -10 -10 -10 -9 -8 --------- Run | Scr Mat Min Exi Min Mat Total 1655 | 62 256 212 331 288 506 Wait . | . . . . . . Move 1442 | 45 208 188 315 269 417 Hop . | . . . . . . Pick Up 72 | 12 8 8 8 3 33 Fast Attach 4 | . 4 . . . . Attach 30 | 5 4 5 1 1 14 Detach . | . . . . . . Swap . | . . . . . . Drop 26 | . 8 7 7 1 3 Fire 78 | . 24 4 . 14 36 Melee . | . . . . . . Ram . | . . . . . . Kick . | . . . . . . Crush 3 | . . . . . 3 Escape Stasis . | . . . . . . Rewire . | . . . . . . Trap . | . . . . . . Miscellaneous . | . . . . . . Route ------- -11/Scrapyard -10/Materials -10/Mines -10/Exiles -9/Mines -8/Materials History --------- Turn | Location | Event 35 | -11/Scrapyard | Discovered new exit (range 16) 67 | -11/Scrapyard | Entered Materials 330 | -10/Materials | Build established: Mutant 382 | -10/Materials | Discovered new exit (range 8) 397 | -10/Materials | Entered Mines 412 | -10/Mines | Met a Derelict bent on vengeance 416 | -10/Mines | Assembled infested the area 483 | -10/Mines | Met 8R-AWN 567 | -10/Mines | Met a Derelict shopkeep closing up shop 693 | -10/Mines | Discovered new exit (range 5) 700 | -10/Mines | Entered Exiles 744 | -10/Exiles | Welcomed by 8R-AWN 782 | -10/Exiles | Met EX-HEX 849 | -10/Exiles | Met EX-BIN 873 | -10/Exiles | Aligned with FarCom system 875 | -10/Exiles | Given EX-Vault access code 1038 | -10/Exiles | Met EX-DEC 1383 | -10/Exiles | Discovered new exit (range 10) 1410 | -10/Exiles | Build established: Hauler-Mutant 1433 | -10/Exiles | Entered Mines 1440 | -9/Mines | Received a Rocket Launcher from a helpful Derelict 2956 | -9/Mines | Discovered new exit (range 6) 2984 | -9/Mines | Entered Materials 2984 | -8/Materials | Evolved 4 slots: Utility x2, Weapon x2 3301 | -8/Materials | Build established: Hauler-Skirmisher 5424 | -8/Materials | Crushed by falling debris 5447 | -8/Materials | Core integrity fell below 50% 5453 | -8/Materials | Core integrity fell below 20% 5463 | -8/Materials | Destroyed by G-47 Trooper with Particle Gun Last Messages --------------- Lightning Gun destroyed. K-01 Serf destroyed. Penetrated by Slug. Aluminum Leg destroyed. Knocked back. Acquired 10 matter. U-05 Engineer builds a Wall. K-01 Serf collects debris. Acquired Lightning Gun. U-05 Engineer builds a Wall. Corruption Screen severed. Critical hit (Burn: +37). Acquired 5 matter. U-05 Engineer builds a Wall. K-01 Serf collects debris. Lightning Gun severed. Acquired Minigun. K-01 Serf collects debris. U-05 Engineer builds a Wall. Minigun destroyed. Map ----- +----------------------------------------------------+ | # || #?########?????????????????????????? | | / #?# #?????????????????????????? | | # #?# #?????????????????????????? | | ### # [ #?# #?????????????????????????? | | ### # #?# #?????????????????????????? | | # # ] #?# [#?????????????????????????? | | # # #?# #?? ??????????????????????? | | # # #?####+###?? ??????????????????????? | | # #####+####### #?? ??????????????????????? | | # ###+##########????????????? | | + + #????????????? | | # # """ #????????????? | | ### #########+## """ # """ #? #????????? | | #?# #?????""" ## """"" + """ # #????????? | | #?# #??? "T" ## """"" # + #????????? | | #?# #?? + """"" # """ #????????????? | | ###?# #?? ] # """ # R" #????????????? | | ##### ########### # """ #????????????? | | # #????????????? | | #############??##+######## ##+#######????????????? | | #?????##########?????????# #??????????????????? | | #?????# #????????##!g #??????????????????? | | #?????# """ #???????###/=/ # ###?????????????? | | #?????# """ #???????###!%% ###### #???????? | | ##????# """ #?????#####Hgk%% u #???????? | | #????# #?????+ %c@c/% % #???????? | | #????# """ #?????######## k #???????? | | ##??## """ #?????######## #### u #???????? | | ####### #????? #? # # +###???????? | | #[ #### #???? ?? # ?????????? | | ###########+######## ?? # ????????? | | # """ #? #? ????????? | | # """ #? #?? ????????? | | + """ #? #??? ?????????? | | # #? #??? ?????????? | | # """ #?? #???? ???????????? | | ########## # """ #?? #????????????????? | | ?##### # # """ #??? #????????????????? | | ?????# # # # #?????????????????????? | | ?????### # #########?????????????????????? | | ???????### ###???????????????????????????? | | ########## #???????????????????????????? | | # #???????????????????????????? | | # +???????????????????????????? | | """ """ # = #???????????????????????????? | | """ """ # = #???????????????????????????? | | """ """ # #####+###???????????????????????????? | | # ## #???????????????????????????? | | + ## #???????????????????????????? | | # ## #???????????????????????????? | +----------------------------------------------------+ Best States ------------- Heat Dissipation 31 Energy Generation 14 Energy Capacity 160 Matter Stores 350 Matter Capacity 350 Sight Range 16 Terrain Scan Density 10 Corruption Block 8 Weapon Shielding 66 Evasion (%) 55 Recoil Reduction 2 Particle Charging 15 Item Schematics ----------------- None Robot Schematics ------------------ None Fabricated ------------ Nothing Alien Tech Used ----------------- None Achievements -------------- It's Just You Packrat Challenges ------------ None Game ------ Seed TachyonOpticalFrame Manual? 0 Play Time 00:35:28 Cumulative 19.3 hours Start 2022.04.11 @ 09:20:40 End 2022.04.11 @ 09:56:42 Sessions 1 Manual Loads 0 Difficulty Rogue Special Mode None Game No. 21 Rogue 10 Adventurer 0 Explorer 11 Win Type - Total 0 Types 0/0/0/0/0/0/0/0/0 Lore% 8 Gallery% 26 Achievement% 20 Wizard Run 0 Options --------- ASCII 0 Keyboard 0 Movement Mouse Keybinds 0 Fullscreen 1 Font 18/SmallcapsGlow Map View 76x50 Tactical HUD 0 Map Filters NONE Filters NONE Steam 1 RUN: 4c9f0bd0-53a7-4a60-9b89-017afcd0eebf